bitfinex/quotes_BTCUSD_20241025
["timestamp","ask_amount","ask_price","bid_price","bid_amount"]
[1729864601603,0.000824,68239.0,68238.0,0.15289398]
[1729864601844,0.147367,68239.0,68238.0,0.15050381]
[1729864602728,0.147367,68239.0,68231.0,0.00733115]
[1729864602729,0.000824,68239.0,68234.0,0.00239017]
[1729864602950,0.14655,68236.0,68235.0,0.15289398]
[1729864603154,0.14655,68236.0,68235.0,0.15050381]
[1729864603368,0.000824,68239.0,68235.0,0.15050381]
[1729864603579,0.000824,68239.0,68238.0,0.14893517]
[1729864603801,0.000824,68239.0,68238.0,0.29943898]
[1729864604266,0.000824,68239.0,68238.0,0.15289398]
[1729864604916,0.147367,68239.0,68238.0,0.15289398]
[1729864605138,0.000824,68239.0,68238.0,0.15289398]
[1729864606271,0.147367,68239.0,68238.0,0.15289398]
[1729864606499,0.000824,68239.0,68238.0,0.15289398]
[1729864606945,0.000824,68239.0,68238.0,0.29943898]
[1729864607799,0.000824,68239.0,68238.0,0.43963598]
[1729864610557,0.000824,68239.0,68238.0,0.29309098]
[1729864610772,0.000824,68239.0,68238.0,0.43963598]
[1729864611200,0.000824,68239.0,68238.0,0.6046512]
[1729864611639,0.000824,68239.0,68238.0,0.6196512]
[1729864613491,0.000824,68239.0,68238.0,0.6046512]
[1729864613739,0.000824,68239.0,68238.0,0.29309098]
[1729864613980,0.000824,68239.0,68238.0,0.43963598]
[1729864614654,0.000824,68239.0,68238.0,0.29309098]
[1729864614897,0.147367,68239.0,68238.0,0.29309098]
[1729864616087,0.147367,68239.0,68238.0,0.29070081]
[1729864616338,0.31238222,68239.0,68238.0,0.140197]
[1729864617035,0.38898222,68239.0,68238.0,0.140197]
[1729864618159,0.38898222,68239.0,68238.0,0.14010823]
[1729864623472,0.223967,68239.0,68238.0,0.14010823]
[1729864627787,0.223967,68239.0,68238.0,0.15411905]
[1729864628017,0.147367,68239.0,68238.0,0.14010823]
[1729864632031,0.147367,68239.0,68238.0,0.14175623]
[1729864641508,0.000824,68239.0,68238.0,0.60621043]
[1729864641716,0.000824,68239.0,68238.0,0.77122565]
[1729864641924,0.000824,68239.0,68238.0,0.60621043]
[1729864642134,0.000824,68239.0,68238.0,0.61121043]
[1729864642347,0.000824,68239.0,68238.0,0.69811043]
[1729864643438,0.000824,68239.0,68238.0,0.86312565]
[1729864643665,0.0809,68267.0,68244.0,0.01939017]
[1729864643885,0.146491,68264.0,68244.0,0.58237244]
[1729864644095,0.14649,68264.0,68244.0,0.5794422]
[1729864644305,0.292968,68267.0,68244.0,0.5794422]
[1729864644510,0.146491,68264.0,68244.0,0.5794422]
[1729864644981,0.146492,68263.0,68244.0,0.5794422]
[1729864645641,0.146492,68263.0,68244.0,0.5814422]
[1729864646109,0.585936,68267.0,68244.0,0.5794422]
[1729864646309,0.146489,68265.0,68244.0,0.5794422]
[1729864646523,0.292957,68270.0,68244.0,0.5794422]
[1729864646732,0.146491,68264.0,68244.0,0.5794422]
[1729864646945,0.292967,68267.0,68244.0,0.5794422]
[1729864647155,0.146488,68265.0,68244.0,0.5794422]
[1729864647326,0.146488,68265.0,68244.0,0.58402261]
[1729864647545,0.146496,68261.0,68244.0,0.58402261]
[1729864647750,0.146489,68265.0,68244.0,0.58602261]
[1729864647966,0.292967,68267.0,68244.0,0.58402261]
[1729864648319,0.14651,68255.0,68244.0,0.56902261]
[1729864648529,0.0822,68258.0,68244.0,0.56902261]
[1729864648530,0.146512,68254.0,68244.0,0.56902261]
[1729864648786,0.375206,68258.0,68244.0,0.30400739]
[1729864648998,0.146528,68246.0,68244.0,0.15747439]
[1729864649216,0.146527,68247.0,68244.0,0.15747439]
[1729864649433,0.293035,68252.0,68244.0,0.30400796]
[1729864649930,0.146522,68249.0,68244.0,0.30400796]
[1729864650182,0.293019,68255.0,68244.0,0.30400796]
[1729864650183,0.146514,68253.0,68244.0,0.30400796]
[1729864650396,0.293019,68255.0,68244.0,0.30400796]
[1729864650780,0.146512,68254.0,68244.0,0.30400796]
[1729864651195,0.146514,68253.0,68244.0,0.30400796]
[1729864651436,0.293019,68255.0,68244.0,0.30400796]
[1729864651656,0.0822,68258.0,68244.0,0.40900796]
[1729864651880,0.146503,68258.0,68244.0,0.40400796]
[1729864652095,0.146505,68257.0,68244.0,0.40900796]
[1729864652540,0.293005,68259.0,68244.0,0.40900796]
[1729864652763,0.146504,68258.0,68244.0,0.40900796]
[1729864653192,0.293005,68259.0,68244.0,0.40900796]
[1729864653623,0.14651,68255.0,68244.0,0.40900796]
[1729864653873,0.146507,68257.0,68244.0,0.40900796]
[1729864654079,0.293015,68256.0,68244.0,0.30400796]
[1729864654309,0.293028,68253.0,68244.0,0.15747496]
[1729864654525,0.293028,68253.0,68244.0,0.30400796]
[1729864654526,0.146524,68248.0,68244.0,0.30400796]
[1729864654749,0.293042,68250.0,68244.0,0.15747496]
[1729864654962,0.500824,68245.0,68244.0,0.30400796]
[1729864655434,0.500824,68245.0,68244.0,0.15747496]
[1729864655662,0.647354,68245.0,68244.0,0.15508479]
[1729864656073,0.647354,68245.0,68244.0,0.15747496]
[1729864656762,0.647354,68245.0,68244.0,0.15508479]
[1729864657212,0.647354,68245.0,68244.0,0.15508533]
[1729864657656,0.647354,68245.0,68244.0,0.00458152]
[1729864658318,0.146541,68240.0,68239.0,0.00458152]
[1729864658529,0.31155622,68240.0,68239.0,0.00458152]
[1729864658733,0.39215622,68240.0,68239.0,0.00458152]
[1729864658963,0.24561522,68240.0,68238.0,0.14175623]
[1729864659173,0.146543,68239.0,68238.0,0.14175623]
[1729864659380,0.146543,68239.0,68238.0,0.14633827]
[1729864660273,0.146543,68239.0,68238.0,0.14175623]
[1729864661626,0.146543,68239.0,68238.0,0.15639011]
[1729864661848,0.146543,68239.0,68238.0,0.14175623]
[1729864662317,0.0806,68240.0,68238.0,0.29465021]
[1729864662566,0.500824,68245.0,68239.0,0.15050381]
[1729864662783,0.51328766,68244.0,68240.0,0.00458238]
[1729864663020,0.146539,68241.0,68240.0,0.15050381]
[1729864663953,0.146543,68239.0,68238.0,0.14175623]
[1729864665864,0.146542,68240.0,68239.0,0.00239017]
[1729864666082,0.146542,68240.0,68239.0,0.15289398]
[1729864666525,0.293067,68244.0,68239.0,0.15289398]
[1729864666729,0.293067,68244.0,68240.0,0.15050381]
[1729864666730,0.146539,68241.0,68240.0,0.15050381]
[1729864667161,0.29307,68243.0,68240.0,0.15050381]
[1729864667162,0.146537,68242.0,68240.0,0.15050381]
[1729864667865,0.146539,68241.0,68240.0,0.15050381]
[1729864668335,0.500824,68245.0,68244.0,0.00239017]
[1729864668579,0.500824,68245.0,68244.0,0.15289398]
[1729864668806,0.500824,68245.0,68244.0,0.29942698]
[1729864669278,0.500824,68245.0,68244.0,0.15289398]
[1729864669702,0.500824,68245.0,68244.0,0.29942698]
[1729864669923,0.500824,68245.0,68244.0,0.15289398]
[1729864670993,0.500824,68245.0,68244.0,0.29942698]
[1729864672993,0.500824,68245.0,68244.0,0.52990801]
[1729864673219,0.500824,68245.0,68244.0,0.30675681]
[1729864673427,0.500824,68245.0,68244.0,0.31175681]
[1729864675223,0.500824,68245.0,68244.0,0.31375681]
[1729864675442,0.500824,68245.0,68244.0,0.31175681]
[1729864676576,0.500824,68245.0,68244.0,0.30442698]
[1729864676783,0.500824,68245.0,68244.0,0.31375643]
[1729864677020,0.500824,68245.0,68244.0,0.31175643]
[1729864679229,0.500824,68245.0,68244.0,0.31375598]
[1729864679445,0.500824,68245.0,68244.0,0.31175598]
[1729864679657,0.500824,68245.0,68244.0,0.42375598]
[1729864680515,0.500824,68245.0,68244.0,0.42375565]
[1729864681124,0.500824,68245.0,68244.0,0.54940121]
[1729864681335,0.46832212,68245.0,68244.0,0.54940121]
[1729864681543,0.46832212,68245.0,68244.0,0.571174]
[1729864681971,0.46832212,68245.0,68244.0,0.59294678]
[1729864682195,0.42507122,68245.0,68244.0,0.58822103]
[1729864682421,0.41075681,68245.0,68244.0,0.58822103]
[1729864682663,0.00083,68260.0,68259.0,0.14889017]
[1729864682900,0.00083,68260.0,68259.0,0.30232367]
[1729864683339,0.00083,68260.0,68259.0,0.30439398]
[1729864685293,0.00083,68260.0,68259.0,0.30932331]
[1729864685518,0.00083,68260.0,68259.0,0.30732331]
[1729864686226,0.00083,68260.0,68259.0,0.30639398]
[1729864686439,0.00083,68260.0,68259.0,0.47233845]
[1729864686660,0.146428,68293.0,68283.0,0.00239017]
[1729864686917,0.146428,68293.0,68271.0,0.292948]
[1729864686918,0.00017747,68295.0,68287.0,0.32884539]
[1729864687168,0.00138251,68300.0,68299.0,0.26580517]
[1729864687417,0.00138251,68300.0,68299.0,0.26873259]
[1729864687654,0.00138251,68300.0,68299.0,0.26380517]
[1729864688344,0.00138251,68300.0,68299.0,0.25934267]
[1729864688600,0.00138251,68300.0,68299.0,0.14880517]
[1729864688849,0.00220651,68300.0,68299.0,0.29930898]
[1729864689335,0.00220651,68300.0,68299.0,0.30430898]
[1729864689557,0.00220651,68300.0,68299.0,0.40430898]
[1729864689791,0.00220651,68300.0,68299.0,0.41430898]
[1729864690726,0.00220651,68300.0,68299.0,0.5793242]
[1729864691709,0.00220651,68300.0,68299.0,0.5813242]
[1729864692387,0.00220651,68300.0,68299.0,0.5793242]
[1729864692599,0.00220651,68300.0,68299.0,0.5813242]
[1729864692819,0.00220651,68300.0,68299.0,0.6579242]
[1729864693543,0.00220651,68300.0,68299.0,0.7495242]
[1729864694401,0.146355,68327.0,68324.0,0.00239017]
[1729864694624,0.146355,68327.0,68326.0,0.00239017]
[1729864694872,0.146357,68326.0,68325.0,0.00239017]
[1729864695285,0.14637,68320.0,68319.0,0.00239017]
[1729864695925,0.292718,68325.0,68309.0,0.16501522]
[1729864695926,0.146366,68322.0,68321.0,0.00239017]
[1729864696593,0.16501522,68326.0,68315.0,0.00239017]
[1729864696817,0.146378,68316.0,68315.0,0.00239017]
[1729864698141,0.146387,68312.0,68311.0,0.00239017]
[1729864698369,0.221787,68312.0,68311.0,0.00239017]
[1729864699060,0.146395,68308.0,68307.0,0.00239017]
[1729864699269,0.16501522,68308.0,68303.0,0.00239017]
[1729864699484,0.146412,68300.0,68299.0,0.00239017]
[1729864700374,0.146412,68300.0,68299.0,0.15289398]
[1729864701004,0.297781,68311.0,68303.0,0.00239017]
[1729864701236,0.297781,68311.0,68304.0,0.15050381]
[1729864701483,0.146402,68305.0,68304.0,0.15050381]
[1729864701905,0.14641,68301.0,68300.0,0.00239017]
[1729864702121,0.14641,68301.0,68300.0,0.15050381]
[1729864702337,0.22461,68301.0,68300.0,0.15050381]
[1729864702540,0.22461,68301.0,68300.0,0.15289398]
[1729864703193,0.292804,68305.0,68300.0,0.15289398]
[1729864703416,0.0786,68308.0,68301.0,0.15050381]
[1729864703863,0.146406,68303.0,68301.0,0.15050381]
[1729864704080,0.146407,68303.0,68301.0,0.15050381]
[1729864704283,0.2928,68306.0,68301.0,0.15050381]
[1729864704504,0.146408,68302.0,68301.0,0.15050381]
[1729864705676,0.371392,68308.0,68306.0,0.00239017]
[1729864705895,0.146397,68307.0,68306.0,0.00239017]
[1729864706327,0.146404,68304.0,68303.0,0.00239017]
[1729864708303,0.146404,68304.0,68295.0,0.29577208]
[1729864708304,0.0786,68308.0,68307.0,0.00239017]
[1729864708519,0.224995,68308.0,68307.0,0.00239017]
[1729864708750,0.224995,68308.0,68307.0,0.15289398]
[1729864711393,0.16583922,68312.0,68307.0,0.15289398]
[1729864711394,0.146389,68311.0,68307.0,0.15289398]
[1729864711638,0.146392,68310.0,68309.0,0.00239017]
[1729864711842,0.000824,68312.0,68311.0,0.00239017]
[1729864712052,0.147211,68312.0,68311.0,0.15289398]
[1729864712254,0.000824,68312.0,68311.0,0.15289398]
[1729864712891,0.000824,68312.0,68311.0,0.30428298]
[1729864713112,0.000824,68312.0,68311.0,0.31160688]
[1729864715449,0.000824,68312.0,68311.0,0.4766221]
[1729864716533,0.000824,68312.0,68311.0,0.4866221]
[1729864717479,0.000824,68312.0,68311.0,0.5824221]
[1729864717710,0.000824,68312.0,68311.0,0.57503193]
[1729864717940,0.000824,68312.0,68311.0,0.4866221]
[1729864718579,0.430708,68328.0,68327.0,0.00239017]
[1729864718807,0.146352,68328.0,68327.0,0.16021788]
[1729864719948,0.146352,68328.0,68327.0,0.16021618]
[1729864721269,0.000829,68329.0,68328.0,0.00239017]
[1729864721489,0.000829,68329.0,68328.0,0.16021618]
[1729864722444,0.00504,68340.0,68328.0,0.16021618]
[1729864722445,0.0002069,68348.0,68339.0,0.00239017]
[1729864722696,0.0002069,68348.0,68347.0,0.31871739]
[1729864722901,0.0002069,68348.0,68347.0,0.32603959]
[1729864723333,0.0002069,68348.0,68347.0,0.01428617]
[1729864723798,0.0002069,68348.0,68347.0,0.16559817]
[1729864724214,0.0002069,68348.0,68347.0,0.01428617]
[1729864724666,0.0002069,68348.0,68347.0,0.16059817]
[1729864724912,0.0002069,68348.0,68347.0,0.16559817]
[1729864725560,0.0002069,68348.0,68347.0,0.16852374]
[1729864726261,0.0002069,68348.0,68347.0,0.17852374]
[1729864726469,0.0002069,68348.0,68347.0,0.70070429]
[1729864726886,0.00021731,68360.0,68359.0,0.01739017]
[1729864727115,0.000829,68370.0,68368.0,0.16365717]
[1729864727572,0.000829,68370.0,68368.0,0.16658148]
[1729864727804,0.000829,68370.0,68368.0,0.16365717]
[1729864728275,5.188e-05,68379.0,68367.0,0.54214412]
[1729864728276,5.188e-05,68379.0,68378.0,0.00739017]
[1729864728589,0.00017749,68392.0,68375.0,0.302501]
[1729864728590,0.00017749,68392.0,68390.0,0.27184686]
[1729864728773,0.00017749,68392.0,68380.0,0.24960612]
[1729864728774,0.24978912,68391.0,68388.0,0.00239017]
[1729864728981,0.24978912,68391.0,68352.0,0.08629113]
[1729864728982,0.146237,68382.0,68381.0,0.00239017]
[1729864729220,0.24978912,68391.0,68381.0,0.00239017]
[1729864729221,0.000183,68391.0,68381.0,0.00239017]
[1729864729445,0.000183,68391.0,68389.0,0.00239017]
[1729864729651,0.14622,68390.0,68389.0,0.00239017]
[1729864730332,0.39582612,68390.0,68389.0,0.00239017]
[1729864730758,0.146222,68389.0,68388.0,0.00239017]
[1729864730975,0.24960612,68390.0,68389.0,0.00239017]
[1729864731189,0.39582612,68390.0,68389.0,0.00239017]
[1729864731399,0.39582612,68390.0,68389.0,0.15289398]
[1729864732299,0.40082612,68390.0,68389.0,0.15289398]
[1729864733164,0.39582612,68390.0,68389.0,0.15289398]
[1729864735909,0.000183,68391.0,68390.0,0.00239017]
[1729864736081,0.000183,68391.0,68390.0,0.15289398]
[1729864737151,0.000183,68391.0,68390.0,0.15789398]
[1729864737404,0.000183,68391.0,68390.0,0.16081797]
[1729864738063,0.000183,68391.0,68390.0,0.15789398]
[1729864738280,0.000183,68391.0,68390.0,0.30411398]
[1729864739132,0.000183,68391.0,68390.0,0.30703775]
[1729864739355,0.000183,68391.0,68390.0,0.30411398]
[1729864740716,0.000183,68391.0,68390.0,0.31703769]
[1729864740951,0.00068849,68394.0,68393.0,0.16360317]
[1729864741161,0.00068849,68394.0,68393.0,0.31703053]
[1729864741369,0.00068849,68394.0,68393.0,0.31410698]
[1729864741582,0.00068849,68394.0,68393.0,0.30410698]
[1729864741791,0.00068849,68394.0,68393.0,0.30910698]
[1729864742015,0.00068849,68394.0,68393.0,0.30410698]
[1729864742474,0.03998616,68400.0,68399.0,0.16359017]
[1729864742685,0.03998616,68400.0,68399.0,0.31409398]
[1729864745715,0.03998616,68400.0,68399.0,0.31493667]
[1729864746199,0.03998616,68400.0,68399.0,0.31409398]
[1729864746652,0.03998616,68400.0,68399.0,0.40869398]
[1729864747101,0.03998616,68400.0,68399.0,0.41069398]
[1729864747552,0.01145947,68400.0,68399.0,0.41069398]
[1729864748212,0.01145947,68400.0,68399.0,0.40869398]
[1729864748882,0.01228247,68400.0,68399.0,0.40869398]
[1729864750419,0.01228247,68400.0,68399.0,0.41609398]
[1729864750652,0.01228247,68400.0,68399.0,0.30409398]
[1729864750851,0.01228247,68400.0,68399.0,0.15289398]
[1729864752029,0.15848047,68400.0,68399.0,0.15289398]
[1729864752235,0.50498659,68400.0,68399.0,0.15289398]
[1729864752417,0.58598659,68400.0,68399.0,0.15050381]
[1729864752688,0.58598659,68400.0,68393.0,0.00403617]
[1729864752690,0.146211,68394.0,68393.0,0.001646]
[1729864752900,0.39581712,68394.0,68393.0,0.15214981]
[1729864755634,0.146211,68394.0,68393.0,0.15214981]
[1729864755844,0.292419,68395.0,68393.0,0.15214981]
[1729864756054,0.292412,68397.0,68393.0,0.15214981]
[1729864756055,0.292412,68397.0,68394.0,0.15050381]
[1729864756269,0.146209,68395.0,68394.0,0.15050381]
[1729864758266,0.292414,68396.0,68393.0,0.001646]
[1729864758496,0.224111,68394.0,68393.0,0.001646]
[1729864758765,0.48632695,68394.0,68393.0,0.001646]
[1729864758974,0.47383912,68384.0,68383.0,0.22022066]
[1729864759466,0.146248,68377.0,68369.0,0.22261083]
[1729864759683,0.146262,68370.0,68369.0,0.22022066]
[1729864759927,0.39586812,68370.0,68369.0,0.37072447]
[1729864760384,0.39586812,68370.0,68369.0,0.15050381]
[1729864761660,0.39586812,68370.0,68369.0,0.15214981]
[1729864761867,0.146262,68370.0,68369.0,0.15214981]
[1729864762088,0.146259,68372.0,68369.0,0.15214981]
[1729864762304,0.24960612,68374.0,68370.0,0.15050381]
[1729864762548,0.146257,68373.0,68370.0,0.15289398]
[1729864762789,0.078,68377.0,68376.0,0.00239017]
[1729864763007,0.14623,68385.0,68382.0,0.00239017]
[1729864763236,0.146228,68386.0,68382.0,0.15289398]
[1729864763449,0.0755,68388.0,68387.0,0.146226]
[1729864763657,0.0755,68388.0,68387.0,0.29672981]
[1729864763911,0.0755,68388.0,68387.0,0.15289398]
[1729864764119,0.0755,68388.0,68387.0,0.29911998]
[1729864764483,0.221724,68388.0,68387.0,0.15289398]
[1729864764683,0.0755,68388.0,68387.0,0.15289398]
[1729864764882,0.221724,68388.0,68387.0,0.15050381]
[1729864765926,0.146231,68385.0,68382.0,0.22022066]
[1729864766127,0.24960612,68386.0,68383.0,0.36806423]
[1729864766328,0.24960612,68386.0,68383.0,0.29407757]
[1729864766528,0.24960612,68386.0,68383.0,0.14784357]
[1729864767149,0.0755,68388.0,68384.0,0.146232]
[1729864767360,0.0755,68388.0,68385.0,0.15050381]
[1729864768300,0.146227,68387.0,68385.0,0.15050381]
[1729864768503,0.146228,68386.0,68385.0,0.15050381]
[1729864768714,0.39583412,68386.0,68385.0,0.15050381]
[1729864768943,0.24960612,68386.0,68371.0,0.00084664]
[1729864769176,0.24960612,68380.0,68379.0,0.22022066]
[1729864769393,0.39584712,68380.0,68379.0,0.15050381]
[1729864770126,0.25460612,68380.0,68374.0,0.22022066]
[1729864770333,0.25460612,68380.0,68375.0,0.15050381]
[1729864770334,0.292487,68379.0,68375.0,0.15050381]
[1729864770518,0.146249,68377.0,68375.0,0.15050381]
[1729864770973,0.14625,68376.0,68375.0,0.15050381]
[1729864771635,0.146261,68371.0,68369.0,0.001646]
[1729864771869,0.14626,68371.0,68370.0,0.15050381]
[1729864772063,0.39586412,68373.0,68370.0,0.15050381]
[1729864772236,0.14626,68371.0,68370.0,0.15050381]
[1729864772473,0.225962,68370.0,68369.0,0.001646]
[1729864773758,0.24960612,68356.0,68354.0,0.22022066]
[1729864773957,0.146295,68355.0,68354.0,0.22022066]
[1729864774197,0.292612,68350.0,68342.0,0.14632]
[1729864774429,0.24960612,68356.0,68344.0,0.146317]
[1729864774678,0.146302,68352.0,68346.0,0.146313]
[1729864774910,0.24960612,68356.0,68346.0,0.292628]
[1729864775143,0.292569,68360.0,68347.0,0.19318871]
[1729864775144,0.22022066,68355.0,68347.0,0.19318871]
[1729864775367,0.22022066,68355.0,68347.0,0.15050381]
[1729864775585,0.29257,68360.0,68348.0,0.14631]
[1729864775586,0.146292,68357.0,68348.0,0.14631]
[1729864775791,0.146292,68357.0,68349.0,0.15050381]
[1729864776024,0.292577,68358.0,68349.0,0.29973566]
[1729864776250,0.292568,68360.0,68349.0,0.15342966]
[1729864776509,0.146289,68358.0,68349.0,0.15342966]
[1729864776682,0.24960612,68368.0,68350.0,0.37365009]
[1729864776906,0.146274,68365.0,68351.0,0.00292551]
[1729864777121,0.146275,68365.0,68360.0,0.146284]
[1729864777334,0.24960612,68368.0,68361.0,0.15050381]
[1729864777542,0.292551,68365.0,68361.0,0.15050381]
[1729864778005,0.14628,68362.0,68361.0,0.15050381]
[1729864778229,0.14628,68362.0,68353.0,0.22022066]
[1729864778230,0.146297,68354.0,68353.0,0.22022066]
[1729864778442,0.146297,68354.0,68353.0,0.37072447]
[1729864778692,0.146297,68354.0,68353.0,0.15050381]
[1729864778922,0.54219512,68356.0,68353.0,0.15050381]
[1729864778923,0.68848912,68356.0,68353.0,0.15050381]
[1729864779147,0.146295,68355.0,68354.0,0.15050381]
[1729864782519,0.223395,68355.0,68354.0,0.15050381]
[1729864782934,0.146304,68351.0,68346.0,0.146313]
[1729864783135,0.146304,68351.0,68347.0,0.15050381]
[1729864783340,0.14631,68348.0,68347.0,0.15050381]
[1729864783569,0.24960612,68351.0,68335.0,0.292672]
[1729864783771,0.24960612,68339.0,68336.0,0.15050381]
[1729864783978,0.292649,68342.0,68336.0,0.15050381]
[1729864784206,0.24960612,68344.0,68336.0,0.15050381]
[1729864784462,0.24960612,68344.0,68327.0,0.23522066]
[1729864784463,0.0771,68355.0,68340.0,0.15050381]
[1729864784687,0.22022066,68349.0,68348.0,0.14631]
[1729864784919,0.0771,68355.0,68351.0,0.146302]
[1729864785140,0.0771,68355.0,68352.0,0.15050381]
[1729864785370,0.0771,68355.0,68352.0,0.29680381]
[1729864785601,0.0771,68355.0,68352.0,0.15050381]
[1729864785850,0.0771,68355.0,68354.0,0.001646]
[1729864786087,0.0771,68355.0,68354.0,0.15214981]
[1729864786779,0.47300112,68355.0,68354.0,0.001646]
[1729864787700,0.47284312,68355.0,68354.0,0.001646]
[1729864788048,0.57954312,68355.0,68354.0,0.001646]
[1729864788163,0.57454312,68355.0,68354.0,0.001646]
[1729864788636,0.076942,68355.0,68354.0,0.001646]
[1729864788868,0.223237,68355.0,68354.0,0.00622054]
[1729864789105,0.076942,68355.0,68354.0,0.00622054]
[1729864789578,0.54217812,68360.0,68354.0,0.01353887]
[1729864789804,0.146295,68355.0,68354.0,0.001646]
[1729864790037,0.146292,68356.0,68354.0,0.01353884]
[1729864790256,0.146292,68356.0,68354.0,0.001646]
[1729864790257,0.61612178,68355.0,68354.0,0.001646]
[1729864790498,0.39590112,68355.0,68354.0,0.001646]
[1729864790721,0.47220112,68355.0,68354.0,0.001646]
[1729864791166,0.47720112,68355.0,68354.0,0.001646]
[1729864791397,0.7055583,68355.0,68354.0,0.001646]
[1729864791606,0.58630112,68355.0,68354.0,0.001646]
[1729864792960,0.55030112,68355.0,68354.0,0.001646]
[1729864793192,0.15132,68343.0,68342.0,0.22022066]
[1729864793401,0.47872612,68343.0,68342.0,0.22022066]
[1729864793628,0.146335,68336.0,68335.0,0.22022066]
[1729864793857,0.39594112,68336.0,68335.0,0.22022066]
[1729864794107,0.39594112,68336.0,68324.0,0.001656]
[1729864794108,0.25460612,68336.0,68324.0,0.001656]
[1729864794350,0.146359,68325.0,68324.0,0.001656]
[1729864794583,0.146358,68326.0,68324.0,0.001656]
[1729864794806,0.24960612,68328.0,68324.0,0.001656]
[1729864795015,0.39595912,68328.0,68324.0,0.001656]
[1729864795237,0.24960612,68333.0,68324.0,0.148016]
[1729864795452,0.146351,68329.0,68324.0,0.148016]
[1729864795660,0.292688,68332.0,68324.0,0.001656]
[1729864795959,0.24960612,68333.0,68324.0,0.148016]
[1729864796170,0.146359,68325.0,68324.0,0.001656]
[1729864798719,0.24960612,68331.0,68324.0,0.001656]
[1729864798957,0.146345,68332.0,68324.0,0.001656]
[1729864799166,0.24960612,68331.0,68324.0,0.001656]
[1729864799607,0.39595312,68331.0,68326.0,0.146355]
[1729864799824,0.24960612,68331.0,68324.0,0.001656]
[1729864800285,0.146351,68329.0,68324.0,0.001656]
[1729864800503,0.24960612,68331.0,68324.0,0.001656]
[1729864800716,0.146317,68345.0,68340.0,0.146326]
[1729864800931,0.22022066,68350.0,68341.0,0.15050381]
[1729864800932,0.22022066,68343.0,68341.0,0.15050381]
[1729864801172,0.36654066,68343.0,68342.0,0.15050381]
[1729864801418,0.14632,68343.0,68342.0,0.15050381]
[1729864801640,0.146317,68345.0,68342.0,0.15050381]
[1729864801876,0.146316,68345.0,68342.0,0.15050381]
[1729864802126,0.297605,68352.0,68342.0,0.15050381]
[1729864802127,0.000823,68355.0,68342.0,0.15050381]
[1729864802332,0.000823,68355.0,68343.0,0.00292611]
[1729864802333,0.36653866,68344.0,68343.0,0.00292611]
[1729864802561,0.292626,68347.0,68326.0,0.22022066]
[1729864802562,0.29266,68339.0,68326.0,0.22022066]
[1729864802801,0.29266,68339.0,68337.0,0.22022066]
[1729864802802,0.146331,68338.0,68337.0,0.22022066]
[1729864803020,0.14635,68330.0,68326.0,0.22022066]
[1729864803235,0.24960612,68332.0,68326.0,0.22022066]
[1729864803533,0.146359,68325.0,68316.0,0.294409]
[1729864803750,0.146359,68325.0,68316.0,0.001656]
[1729864804450,0.292694,68331.0,68324.0,0.15215981]
[1729864804718,0.22022066,68344.0,68325.0,0.37072447]
[1729864804970,0.22022066,68337.0,68336.0,0.146335]
[1729864805220,0.22022066,68344.0,68336.0,0.146335]
[1729864805221,0.22022066,68344.0,68336.0,0.15050381]
[1729864805437,0.22022066,68344.0,68338.0,0.292662]
[1729864805646,0.146317,68345.0,68340.0,0.146327]
[1729864805865,0.146315,68346.0,68339.0,0.15050381]
[1729864806114,0.368524,68347.0,68339.0,0.15050381]
[1729864806115,0.146317,68345.0,68339.0,0.15050381]
[1729864806341,0.005,68350.0,68339.0,0.15050381]
[1729864806342,0.22022066,68350.0,68340.0,0.292654]
[1729864806566,0.374913,68355.0,68341.0,0.15050381]
[1729864806814,0.22022066,68349.0,68348.0,0.14631]
[1729864807025,0.146297,68354.0,68348.0,0.15050381]
[1729864807276,0.374913,68355.0,68349.0,0.29681081]
[1729864807277,0.146299,68353.0,68349.0,0.29681081]
[1729864807478,0.146303,68351.0,68349.0,0.15050381]
[1729864807700,0.0789,68350.0,68326.0,0.01]
[1729864807913,0.0789,68350.0,68341.0,0.22022066]
[1729864807914,0.146322,68342.0,68341.0,0.22022066]
[1729864808124,0.146322,68342.0,68334.0,0.22022066]
[1729864808125,0.0928,68344.0,68334.0,0.22022066]
[1729864808360,0.0928,68344.0,68334.0,0.37072447]
[1729864808361,0.292669,68337.0,68334.0,0.37072447]
[1729864808649,0.146337,68335.0,68334.0,0.15050381]
[1729864809116,0.146335,68337.0,68334.0,0.15050381]
[1729864809331,0.146333,68337.0,68334.0,0.15050381]
[1729864809777,0.146336,68336.0,68334.0,0.15050381]
[1729864809995,0.146337,68335.0,68334.0,0.15050381]
[1729864810675,0.146333,68337.0,68334.0,0.15050381]
[1729864810902,0.005,68352.0,68336.0,0.22022066]
[1729864811155,0.22022066,68344.0,68337.0,0.15343013]
[1729864811394,0.146314,68346.0,68337.0,0.15343013]
[1729864811622,0.146316,68345.0,68337.0,0.15343013]
[1729864811858,0.51283066,68351.0,68337.0,0.15343013]
[1729864812073,0.51283066,68351.0,68344.0,0.146317]
[1729864812289,0.000823,68354.0,68345.0,0.15050381]
[1729864812515,0.22022066,68350.0,68345.0,0.15050381]
[1729864812758,0.000823,68354.0,68347.0,0.292624]
[1729864813011,0.146299,68353.0,68348.0,0.15050381]
[1729864813232,0.14712,68354.0,68349.0,0.146307]
[1729864813461,0.14712,68354.0,68347.0,0.292624]
[1729864813462,0.14712,68354.0,68350.0,0.15050381]
[1729864813708,0.000823,68354.0,68350.0,0.15050381]
[1729864813913,0.1463,68353.0,68350.0,0.15050381]
[1729864814120,0.22022066,68351.0,68350.0,0.15050381]
[1729864814336,0.146302,68352.0,68350.0,0.15050381]
[1729864814548,0.293418,68354.0,68350.0,0.15050381]
[1729864814774,0.000823,68354.0,68350.0,0.15050381]
[1729864815049,0.000823,68354.0,68353.0,0.29680281]
[1729864815272,0.000823,68354.0,68353.0,0.29972811]
[1729864815486,0.000823,68354.0,68353.0,0.30472811]
[1729864815705,0.000823,68354.0,68353.0,0.30180281]
[1729864816354,0.21676666,68365.0,68364.0,0.146275]
[1729864816586,0.21676666,68365.0,68364.0,0.29677881]
[1729864816844,0.002,68391.0,68364.0,0.29677881]
[1729864816845,0.0812,68384.0,68364.0,0.15050381]
[1729864817051,0.0951,68393.0,68377.0,0.39585412]
[1729864817270,0.0812,68394.0,68377.0,0.39585412]
[1729864818167,0.22022066,68393.0,68377.0,0.54635793]
[1729864818386,0.22022066,68393.0,68377.0,0.29675181]
[1729864818598,0.22022066,68392.0,68377.0,0.48297624]
[1729864818864,0.22022066,68385.0,68377.0,0.48505181]